[Event "Reykjavik Open 2022"]
[Site "Reykjavik"]
[Date "2022.04.10"]
[Round "6.39"]
[White "Popvasilev, Kaloyan"]
[Black "Sarkisian, Arman"]
[Result "1-0"]
[ECO "C07"]
[WhiteElo "2191"]
[BlackElo "1806"]
[Annotator "NA RC"]
[PlyCount "55"]
[EventDate "2022.04.06"]
[EventCountry "ISL"]
[SourceTitle "playchess.com"]
[Source "ChessBase"]
[SourceQuality "1"]
[TimeControl "40/5400+30:1800+30"]

1. e4 {[%emt 0:00:04]} e6 {[%emt 0:00:03]} 2. d4 {[%emt 0:00:10]} d5 {[%emt 0:00:03]} 3. Nd2 {[%emt 0:00:13]} c5 {[%emt 0:00:04]} 4. Ngf3 {[%emt 0:00:18]} cxd4 {[%emt 0:00:29]} 5. Nxd4 {[%emt 0:00:31]} Nc6 {[%emt 0:00:04]} 6. N4b3 {[%emt 0:12:06]} dxe4 {[%emt 0:12:13]} 7. Nxe4 {[%emt 0:05:26]} Qxd1+ {[%emt 0:01:14]} 8. Kxd1 {[%emt 0:00:05]} Bd7 {[%emt 0:01:14]} 9. c3 {[%emt 0:03:31]} O-O-O {[%emt 0:06:19]} 10. Kc2 {[%emt 0:00:21]} e5 {[%emt 0:01:13]} 11. Bd3 {[%emt 0:01:24]} b6 {[%emt 0:06:09]} 12. f3 {[%emt 0:03:33]} f6 {[%emt 0:00:30]} 13. Rd1 {[%emt 0:05:04]} Kc7 {[%emt 0:01:44]} 14. Bc4 {[%emt 0:12:40]} Nge7 {[%emt 0:07:05]} 15. a4 {[%emt 0:08:26]} Nc8 {[%emt 0:04:39]} 16. a5 {[%emt 0:03:27]} Nd6 {[%emt 0:00:22]} 17. axb6+ {[%emt 0:01:39]} axb6 {[%emt 0:00:09]} 18. Bd5 {[%emt 0:09:12]} Be7 {[%emt 0:09:07]} 19. Be3 {[%emt 0:02:14]} h6 {[%emt 0:04:19]} 20. Nxd6 {[%emt 0:08:35]} Bxd6 {[%emt 0:00:21]} 21. Ra6 {[%emt 0:00:31]} Rb8 {[%emt 0:07:19]} 22. Bxc6 {[%emt 0:05:49]} Bxc6 {[%emt 0:00:48]} 23. Rxb6 {[%emt 0:07:19]} Rxb6 {[%emt 0:00:13]} 24. Bxb6+ {[%emt 0:00:04]} Kxb6 {[%emt 0:00:04]} 25. Rxd6 {[%emt 0:00:03]} Kc7 {[%emt 0:00:04]} 26. Rd1 {[%emt 0:00:22]} e4 {[%emt 0:03:19]} 27. Nd4 {[%emt 0:00:31]} exf3 {[%emt 0:01:05]} 28. gxf3 {[%emt 0:00:03]} 1-0

[Event "Reykjavik Open 2022"]
[Site "Reykjavik"]
[Date "2022.04.10"]
[Round "6.40"]
[White "Coursaget, Nicolas"]
[Black "Thorisson, Benedikt"]
[Result "1-0"]
[ECO "D00"]
[WhiteElo "2185"]
[BlackElo "1790"]
[Annotator "NA RC"]
[PlyCount "87"]
[EventDate "2022.04.06"]
[EventCountry "ISL"]
[SourceTitle "playchess.com"]
[Source "ChessBase"]
[SourceQuality "1"]
[TimeControl "40/5400+30:1800+30"]

1. d4 {[%emt 0:00:04]} Nf6 {[%emt 0:00:08]} 2. Nf3 {[%emt 0:00:25]} g6 {[%emt 0:00:31]} 3. Nc3 {[%emt 0:00:09]} d5 {[%emt 0:00:10]} 4. Bf4 {[%emt 0:00:06]} Bg7 {[%emt 0:00:20]} 5. e3 {[%emt 0:00:07]} Bf5 {[%emt 0:01:34]} 6. Ne5 {[%emt 0:07:59]} c6 {[%emt 0:01:39]} 7. Be2 {[%emt 0:05:52]} Nbd7 {[%emt 0:06:28]} 8. g4 {[%emt 0:06:02]} Be6 {[%emt 0:00:16]} 9. Bf3 {[%emt 0:05:07]} Nxe5 {[%emt 0:01:42]} 10. Bxe5 {[%emt 0:00:02]} O-O {[%emt 0:00:19]} 11. h4 {[%emt 0:04:05]} Qd7 {[%emt 0:01:16]} 12. Rg1 {[%emt 0:01:22]} Ne8 {[%emt 0:01:38]} 13. Bxg7 {[%emt 0:02:25]} Kxg7 {[%emt 0:00:26]} 14. Qe2 {[%emt 0:03:11]} Nd6 {[%emt 0:01:04]} 15. O-O-O {[%emt 0:04:20]} b5 {[%emt 0:02:31]} 16. e4 {[%emt 0:04:59]} dxe4 {[%emt 0:04:58]} 17. Nxe4 {[%emt 0:07:05]} Nxe4 {[%emt 0:03:46]} 18. Bxe4 {[%emt 0:00:43]} Bd5 {[%emt 0:00:38]} 19. h5 {[%emt 0:02:11]} Qe6 {[%emt 0:02:11]} 20. f3 {[%emt 0:03:26]} Bxe4 {[%emt 0:01:23]} 21. Qxe4 {[%emt 0:00:09]} Qxe4 {[%emt 0:00:10]} 22. fxe4 {[%emt 0:00:01]} Rad8 {[%emt 0:02:35]} 23. Rg3 {[%emt 0:05:04]} a5 {[%emt 0:03:47]} 24. Rc3 {[%emt 0:01:38]} Rc8 {[%emt 0:01:36]} 25. a4 {[%emt 0:02:26]} f5 {[%emt 0:04:04]} 26. gxf5 {[%emt 0:00:28]} gxf5 {[%emt 0:00:33]} 27. h6+ {[%emt 0:00:15]} Kf6 {[%emt 0:02:32]} 28. exf5 {[%emt 0:00:51]} Kxf5 {[%emt 0:04:14]} 29. Rc5+ {[%emt 0:02:39]} Kg6 {[%emt 0:05:21]} 30. axb5 {[%emt 0:02:59]} cxb5 {[%emt 0:00:32]} 31. Rxb5 {[%emt 0:05:47]} a4 {[%emt 0:01:52]} 32. Rb6+ {[%emt 0:06:35]} Rf6 {[%emt 0:00:36]} 33. Rg1+ {[%emt 0:06:07]} Kxh6 {[%emt 0:00:48]} 34. Rxf6+ {[%emt 0:00:39]} exf6 {[%emt 0:00:09]} 35. d5 {[%emt 0:00:28]} Rd8 {[%emt 0:00:51]} 36. c4 {[%emt 0:00:52]} Rc8 {[%emt 0:01:15]} 37. Rg4 {[%emt 0:01:53]} f5 {[%emt 0:00:18]} 38. Rd4 {[%emt 0:00:11]} Kg5 {[%emt 0:00:45]} 39. d6 {[%emt 0:01:04]} Kf6 {[%emt 0:01:34]} 40. d7 {[%emt 0:00:00]} Rd8 {[%emt 0:00:00]} 41. c5 {[%emt 0:00:24]} Ke7 {[%emt 0:00:21]} 42. c6 {[%emt 0:00:07]} h5 {[%emt 0:00:42]} 43. Rd2 {[%emt 0:00:49]} h4 {[%emt 0:00:12]} 44. c7 {[%emt 0:00:10]} 1-0

[Event "Reykjavik Open 2022"]
[Site "Reykjavik"]
[Date "2022.04.10"]
[Round "6.42"]
[White "Doluhanova, Evgeniya"]
[Black "Skarphedinsson, Ingvar Wu"]
[Result "1-0"]
[ECO "A03"]
[WhiteElo "2255"]
[BlackElo "1664"]
[Annotator "NA RC"]
[PlyCount "93"]
[EventDate "2022.04.06"]
[EventCountry "ISL"]
[SourceTitle "playchess.com"]
[Source "ChessBase"]
[SourceQuality "1"]
[TimeControl "40/5400+30:1800+30"]

1. Nf3 {[%emt 0:05:50]} d5 {[%emt 0:00:12]} 2. b3 {[%emt 0:00:08]} Nf6 {[%emt 0:00:07]} 3. Bb2 {[%emt 0:00:04]} c5 {[%emt 0:01:02]} 4. e3 {[%emt 0:02:32]} Nc6 {[%emt 0:00:23]} 5. Bb5 {[%emt 0:00:10]} Bd7 {[%emt 0:00:52]} 6. O-O {[%emt 0:00:16]} e6 {[%emt 0:00:37]} 7. Bxc6 {[%emt 0:00:57]} Bxc6 {[%emt 0:00:10]} 8. Ne5 {[%emt 0:00:03]} Qc7 {[%emt 0:01:50]} 9. f4 {[%emt 0:00:15]} Bd6 {[%emt 0:01:43]} 10. d3 {[%emt 0:00:26]} O-O-O {[%emt 0:01:48]} 11. Nd2 {[%emt 0:00:53]} Rdf8 {[%emt 0:02:14]} 12. Rc1 {[%emt 0:02:37]} Rhg8 {[%emt 0:01:53]} 13. c4 {[%emt 0:00:44]} Kb8 {[%emt 0:07:05]} 14. b4 {[%emt 0:02:23]} b6 {[%emt 0:07:53]} 15. bxc5 {[%emt 0:01:41]} bxc5 {[%emt 0:00:35]} 16. cxd5 {[%emt 0:00:51]} exd5 {[%emt 0:01:12]} 17. Nxc6+ {[%emt 0:02:59]} Qxc6 {[%emt 0:00:13]} 18. Nb3 {[%emt 0:00:07]} Qe8 {[%emt 0:04:35]} 19. Qf3 {[%emt 0:03:34]} Qe7 {[%emt 0:01:07]} 20. Bxf6 {[%emt 0:01:32]} gxf6 {[%emt 0:00:23]} 21. Rfe1 {[%emt 0:00:22]} Rd8 {[%emt 0:07:01]} 22. Qxd5 {[%emt 0:02:39]} Bxf4 {[%emt 0:00:59]} 23. Qf3 {[%emt 0:00:07]} Bd6 {[%emt 0:09:07]} 24. Na5 {[%emt 0:01:10]} Kc8 {[%emt 0:00:23]} 25. Qa8+ {[%emt 0:08:27]} Kd7 {[%emt 0:01:46]} 26. Qc6+ {[%emt 0:00:08]} Ke6 {[%emt 0:00:09]} 27. Rxc5 {[%emt 0:02:08]} Rc8 {[%emt 0:00:54]} 28. Qe4+ {[%emt 0:02:45]} Kd7 {[%emt 0:00:37]} 29. Qa4+ {[%emt 0:00:45]} Ke6 {[%emt 0:01:04]} 30. Qb3+ {[%emt 0:08:05]} Kd7 {[%emt 0:00:12]} 31. Qb5+ {[%emt 0:00:13]} Ke6 {[%emt 0:00:43]} 32. Rxc8 {[%emt 0:00:06]} Rxc8 {[%emt 0:00:20]} 33. Nb3 {[%emt 0:00:04]} Qc7 {[%emt 0:03:06]} 34. Rc1 {[%emt 0:05:06]} Qxc1+ {[%emt 0:04:34]} 35. Nxc1 {[%emt 0:03:58]} Rxc1+ {[%emt 0:00:08]} 36. Kf2 {[%emt 0:00:03]} Rc5 {[%emt 0:01:00]} 37. Qe8+ {[%emt 0:01:04]} Be7 {[%emt 0:00:09]} 38. a4 {[%emt 0:00:53]} Rd5 {[%emt 0:01:00]} 39. Qc8+ {[%emt 0:00:50]} Kd6 {[%emt 0:02:38]} 40. Qa6+ {[%emt 0:00:00]} Kd7 {[%emt 0:00:00]} 41. Qb7+ {[%emt 0:02:34]} Ke6 {[%emt 0:00:34]} 42. Qc6+ {[%emt 0:01:41]} Rd6 {[%emt 0:00:28]} 43. Qc8+ {[%emt 0:00:05]} Ke5 {[%emt 0:00:42]} 44. d4+ {[%emt 0:00:40]} Kd5 {[%emt 0:01:04]} 45. g4 {[%emt 0:05:11]} Re6 {[%emt 0:00:35]} 46. Qd7+ {[%emt 0:01:09]} Bd6 {[%emt 0:01:19]} 47. Qb5+ {[%emt 0:00:14]} 1-0

[Event "Reykjavik Open 2022"]
[Site "Reykjavik"]
[Date "2022.04.10"]
[Round "6.43"]
[White "Mannion, Stephen R"]
[Black "Schultze, Joerg-Martin"]
[Result "1-0"]
[ECO "B45"]
[WhiteElo "2281"]
[BlackElo "1932"]
[Annotator "NA RC"]
[PlyCount "94"]
[EventDate "2022.04.06"]
[EventCountry "ISL"]
[SourceTitle "playchess.com"]
[Source "ChessBase"]
[SourceQuality "1"]
[TimeControl "40/5400+30:1800+30"]

1. e4 {[%emt 0:00:04]} c5 {[%emt 0:00:06]} 2. Nf3 {[%emt 0:00:07]} e6 {[%emt 0:00:08]} 3. d4 {[%emt 0:00:12]} cxd4 {[%emt 0:00:08]} 4. Nxd4 {[%emt 0:00:15]} Nf6 {[%emt 0:00:09]} 5. Nc3 {[%emt 0:00:08]} Nc6 {[%emt 0:00:09]} 6. Ndb5 {[%emt 0:00:38]} Bc5 {[%emt 0:00:21]} 7. Nd6+ {[%emt 0:00:58]} Ke7 {[%emt 0:00:38]} 8. Bf4 {[%emt 0:00:08]} e5 {[%emt 0:00:43]} 9. Nf5+ {[%emt 0:00:15]} Kf8 {[%emt 0:00:30]} 10. Bg5 {[%emt 0:00:18]} Bb4 {[%emt 0:01:23]} 11. Qd3 {[%emt 0:01:30]} d5 {[%emt 0:14:03]} 12. O-O-O {[%emt 0:00:46]} Bxc3 {[%emt 0:08:28]} 13. Qxc3 {[%emt 0:00:26]} Bxf5 {[%emt 0:02:35]} 14. exf5 {[%emt 0:00:11]} Rc8 {[%emt 0:10:16]} 15. Kb1 {[%emt 0:00:20]} Qd7 {[%emt 0:21:03]} 16. Bd3 {[%emt 0:05:55]} h6 {[%emt 0:09:17]} 17. Bh4 {[%emt 0:23:10]} Nd4 {[%emt 0:00:57]} 18. Qb4+ {[%emt 0:16:14]} Kg8 {[%emt 0:00:41]} 19. g4 {[%emt 0:00:30]} Rc6 {[%emt 0:08:04]} 20. c3 {[%emt 0:03:44]} Rb6 {[%emt 0:00:42]} 21. Qc5 {[%emt 0:00:05]} Nc6 {[%emt 0:08:17]} 22. Bxf6 {[%emt 0:03:15]} gxf6 {[%emt 0:00:08]} 23. Bb5 {[%emt 0:00:07]} d4 {[%emt 0:01:16]} 24. cxd4 {[%emt 0:02:36]} exd4 {[%emt 0:00:07]} 25. Bxc6 {[%emt 0:01:16]} Qxc6 {[%emt 0:00:46]} 26. Qxc6 {[%emt 0:01:08]} Rxc6 {[%emt 0:01:40]} 27. Rxd4 {[%emt 0:00:04]} h5 {[%emt 0:00:39]} 28. Rg1 {[%emt 0:02:27]} Kh7 {[%emt 0:01:20]} 29. Rd7 {[%emt 0:00:37]} Re8 {[%emt 0:00:27]} 30. Rxf7+ {[%emt 0:00:58]} Kg8 {[%emt 0:00:10]} 31. Rxb7 {[%emt 0:00:14]} hxg4 {[%emt 0:01:55]} 32. Rxa7 {[%emt 0:01:00]} Re2 {[%emt 0:00:44]} 33. Ra4 {[%emt 0:01:05]} Rxf2 {[%emt 0:01:13]} 34. Rgxg4+ {[%emt 0:06:02]} Kf8 {[%emt 0:00:18]} 35. Raf4 {[%emt 0:00:17]} Rxh2 {[%emt 0:00:19]} 36. a4 {[%emt 0:00:13]} Rc5 {[%emt 0:03:23]} 37. Ka2 {[%emt 0:00:46]} Rh5 {[%emt 0:00:12]} 38. Ka3 {[%emt 0:05:19]} Rcxf5 {[%emt 0:01:11]} 39. Kb4 {[%emt 0:00:34]} Ke7 {[%emt 0:02:58]} 40. Rxf5 {[%emt 0:00:00]} Rxf5 {[%emt 0:00:00]} 41. Rd4 {[%emt 0:00:53]} Rf2 {[%emt 0:11:04]} 42. b3 {[%emt 0:00:13]} f5 {[%emt 0:00:16]} 43. a5 {[%emt 0:00:08]} f4 {[%emt 0:00:18]} 44. a6 {[%emt 0:00:16]} f3 {[%emt 0:00:18]} 45. Kb5 {[%emt 0:02:05]} Rh2 {[%emt 0:02:42]} 46. Rf4 {[%emt 0:00:56]} f2 {[%emt 0:00:25]} 47. a7 {[%emt 0:01:03]} f1=Q+ {[%emt 0:03:21]} 1-0

[Event "Reykjavik Open 2022"]
[Site "Reykjavik"]
[Date "2022.04.10"]
[Round "6.44"]
[White "Sowray, Peter J"]
[Black "Bohlin, Jan"]
[Result "1-0"]
[ECO "D36"]
[WhiteElo "2226"]
[BlackElo "1856"]
[Annotator "NA RC"]
[PlyCount "85"]
[EventDate "2022.04.06"]
[EventCountry "ISL"]
[SourceTitle "playchess.com"]
[Source "ChessBase"]
[SourceQuality "1"]
[TimeControl "40/5400+30:1800+30"]

1. d4 {[%emt 0:00:06]} d5 {[%emt 0:00:06]} 2. c4 {[%emt 0:00:08]} e6 {[%emt 0:00:08]} 3. Nc3 {[%emt 0:00:10]} Nf6 {[%emt 0:00:06]} 4. cxd5 {[%emt 0:00:09]} exd5 {[%emt 0:00:05]} 5. Bg5 {[%emt 0:00:21]} c6 {[%emt 0:00:10]} 6. Qc2 {[%emt 0:00:09]} h6 {[%emt 0:00:47]} 7. Bh4 {[%emt 0:00:36]} Be7 {[%emt 0:00:07]} 8. e3 {[%emt 0:00:29]} O-O {[%emt 0:00:14]} 9. Bd3 {[%emt 0:00:15]} Re8 {[%emt 0:00:10]} 10. Nge2 {[%emt 0:00:21]} Nbd7 {[%emt 0:00:15]} 11. O-O {[%emt 0:00:58]} a5 {[%emt 0:00:25]} 12. f3 {[%emt 0:03:22]} b5 {[%emt 0:00:45]} 13. Rad1 {[%emt 0:04:40]} Ba6 {[%emt 0:12:23]} 14. Bf2 {[%emt 0:09:13]} Bf8 {[%emt 0:10:54]} 15. Ng3 {[%emt 0:03:53]} b4 {[%emt 0:12:09]} 16. Bxa6 {[%emt 0:05:05]} Rxa6 {[%emt 0:00:29]} 17. Na4 {[%emt 0:00:46]} c5 {[%emt 0:05:27]} 18. Nxc5 {[%emt 0:05:48]} Nxc5 {[%emt 0:01:28]} 19. dxc5 {[%emt 0:00:04]} Qc7 {[%emt 0:06:20]} 20. Nf5 {[%emt 0:05:40]} Rc6 {[%emt 0:03:43]} 21. Nd4 {[%emt 0:05:39]} Rxc5 {[%emt 0:01:03]} 22. Qd3 {[%emt 0:02:38]} g6 {[%emt 0:07:26]} 23. Rd2 {[%emt 0:03:19]} Bg7 {[%emt 0:05:28]} 24. Rfd1 {[%emt 0:02:23]} a4 {[%emt 0:09:00]} 25. Qa6 {[%emt 0:02:45]} Ra5 {[%emt 0:00:33]} 26. Qc6 {[%emt 0:02:27]} Qxc6 {[%emt 0:06:30]} 27. Nxc6 {[%emt 0:00:26]} Rb5 {[%emt 0:02:05]} 28. Kf1 {[%emt 0:05:09]} Rb6 {[%emt 0:03:32]} 29. Rc1 {[%emt 0:01:35]} Rb7 {[%emt 0:00:57]} 30. Ke2 {[%emt 0:03:32]} Nd7 {[%emt 0:03:10]} 31. b3 {[%emt 0:04:03]} axb3 {[%emt 0:00:44]} 32. axb3 {[%emt 0:00:03]} Nf6 {[%emt 0:02:13]} 33. Ra2 {[%emt 0:03:34]} Rd7 {[%emt 0:01:58]} 34. Kd3 {[%emt 0:02:45]} Rb7 {[%emt 0:00:28]} 35. Bg3 {[%emt 0:01:53]} Bf8 {[%emt 0:01:53]} 36. Be5 {[%emt 0:05:33]} Nd7 {[%emt 0:00:30]} 37. Bd4 {[%emt 0:00:07]} Bd6 {[%emt 0:01:38]} 38. Ra5 {[%emt 0:03:01]} Nb8 {[%emt 0:01:49]} 39. Nxb8 {[%emt 0:01:52]} Bxb8 {[%emt 0:00:55]} 40. Rxd5 {[%emt 0:00:00]} h5 {[%emt 0:00:00]} 41. h3 {[%emt 0:02:30]} Bc7 {[%emt 0:09:04]} 42. Rd7 {[%emt 0:03:16]} Reb8 {[%emt 0:00:52]} 43. Rcxc7 {[%emt 0:00:44]} 1-0

[Event "Reykjavik Open 2022"]
[Site "Reykjavik"]
[Date "2022.04.10"]
[Round "6.45"]
[White "Tirziman, Rudolf"]
[Black "Villiers, Thomas"]
[Result "1/2-1/2"]
[ECO "E08"]
[WhiteElo "1963"]
[BlackElo "2202"]
[Annotator "RC"]
[PlyCount "200"]
[EventDate "2022.04.06"]
[EventCountry "ISL"]
[SourceTitle "playchess.com"]
[Source "ChessBase"]
[SourceQuality "1"]
[TimeControl "40/5400+30:1800+30"]

1. d4 {[%emt 0:00:05]} Nf6 {[%emt 0:00:29]} 2. c4 {[%emt 0:00:09]} e6 {[%emt 0:02:52]} 3. Nf3 {[%emt 0:00:11]} d5 {[%emt 0:01:13]} 4. g3 {[%emt 0:00:17]} Nbd7 {[%emt 0:02:05]} 5. Bg2 {[%emt 0:01:59]} Be7 {[%emt 0:00:16]} 6. O-O {[%emt 0:00:43]} O-O {[%emt 0:01:01]} 7. Qc2 {[%emt 0:01:54]} c5 {[%emt 0:09:26]} 8. cxd5 {[%emt 0:04:12]} exd5 {[%emt 0:00:23]} 9. dxc5 {[%emt 0:00:43]} Nxc5 {[%emt 0:00:25]} 10. Rd1 {[%emt 0:03:23]} Be6 {[%emt 0:01:57]} 11. Nc3 {[%emt 0:01:27]} Rc8 {[%emt 0:00:50]} 12. Ng5 {[%emt 0:09:13]} Qa5 {[%emt 0:08:34]} 13. Bxd5 {[%emt 0:22:54]} Bg4 {[%emt 0:03:06]} 14. Rd4 {[%emt 0:31:50]} g6 {[%emt 0:22:30]} 15. b4 {[%emt 0:02:17]} Qb6 {[%emt 0:01:06]} 16. bxc5 {[%emt 0:00:37]} Bxc5 {[%emt 0:00:06]} 17. Rc4 {[%emt 0:01:53]} Bxf2+ {[%emt 0:00:54]} 18. Kg2 {[%emt 0:03:11]} Rxc4 {[%emt 0:04:55]} 19. Bxc4 {[%emt 0:00:11]} Qc6+ {[%emt 0:00:08]} 20. Kxf2 {[%emt 0:05:35]} Qxc4 {[%emt 0:00:32]} 21. Qd3 {[%emt 0:01:26]} Qc6 {[%emt 0:01:01]} 22. Qd4 {[%emt 0:04:22]} Re8 {[%emt 0:06:51]} 23. Bb2 {[%emt 0:00:07]} Bf5 {[%emt 0:11:07]} 24. Nd5 {[%emt 0:01:54]} Ng4+ {[%emt 0:04:42]} 25. Kg1 {[%emt 0:00:02]} f6 {[%emt 0:00:57]} 26. Nxf6+ {[%emt 0:01:30]} Nxf6 {[%emt 0:00:14]} 27. Qxf6 {[%emt 0:00:06]} Qxf6 {[%emt 0:00:06]} 28. Bxf6 {[%emt 0:00:04]} Rxe2 {[%emt 0:00:02]} 29. Rd1 {[%emt 0:00:54]} Re8 {[%emt 0:00:33]} 30. Rd2 {[%emt 0:01:23]} h6 {[%emt 0:00:37]} 31. Nf3 {[%emt 0:00:18]} Kf7 {[%emt 0:00:30]} 32. Bd4 {[%emt 0:00:20]} a6 {[%emt 0:00:38]} 33. Kf2 {[%emt 0:00:47]} Rc8 {[%emt 0:00:56]} 34. Be3 {[%emt 0:00:31]} h5 {[%emt 0:00:16]} 35. Bd4 {[%emt 0:00:26]} Ke6 {[%emt 0:01:31]} 36. Bb2 {[%emt 0:00:30]} Kf7 {[%emt 0:00:42]} 37. Re2 {[%emt 0:00:28]} b5 {[%emt 0:00:52]} 38. Ng5+ {[%emt 0:00:30]} Kg8 {[%emt 0:00:20]} 39. Kg2 {[%emt 0:00:59]} Bg4 {[%emt 0:00:10]} 40. Rd2 {[%emt 0:00:00]} a5 {[%emt 0:00:00]} 41. Bf6 {[%emt 0:02:21]} b4 {[%emt 0:01:09]} 42. Rd8+ {[%emt 0:07:36]} Rxd8 {[%emt 0:00:08]} 43. Bxd8 {[%emt 0:00:02]} a4 {[%emt 0:00:12]} 44. Be7 {[%emt 0:01:48]} b3 {[%emt 0:00:06]} 45. axb3 {[%emt 0:00:13]} axb3 {[%emt 0:00:06]} 46. Bf6 {[%emt 0:01:05]} Bd1 {[%emt 0:00:07]} 47. Kf2 {[%emt 0:00:48]} Bc2 {[%emt 0:00:08]} 48. Ke3 {[%emt 0:00:19]} Kf8 {[%emt 0:00:23]} 49. Kf4 {[%emt 0:01:22]} Ke8 {[%emt 0:00:09]} 50. Bb2 {[%emt 0:02:18]} Ke7 {[%emt 0:00:20]} 51. Nf3 {[%emt 0:00:07]} Kf7 {[%emt 0:00:45]} 52. Kg5 {[%emt 0:00:39]} Kg8 {[%emt 0:02:09]} 53. Kh6 {[%emt 0:00:58]} Kf7 {[%emt 0:00:48]} 54. Ne5+ {[%emt 0:00:20]} Kf6 {[%emt 0:00:10]} 55. Nxg6+ {[%emt 0:00:54]} Kf5 {[%emt 0:00:03]} 56. h3 {[%emt 0:04:50]} Bd1 {[%emt 0:00:12]} 57. Nh4+ {[%emt 0:00:12]} Ke4 {[%emt 0:00:16]} 58. Kg5 {[%emt 0:00:37]} Kd3 {[%emt 0:00:57]} 59. Ng2 {[%emt 0:00:52]} Kc2 {[%emt 0:00:02]} 60. Be5 {[%emt 0:00:47]} b2 {[%emt 0:00:02]} 61. Bxb2 {[%emt 0:01:11]} Kxb2 {[%emt 0:00:07]} 62. Nf4 {[%emt 0:01:04]} Kc3 {[%emt 0:00:08]} 63. Nxh5 {[%emt 0:00:15]} Kd4 {[%emt 0:00:05]} 64. Nf6 {[%emt 0:02:24]} Ke5 {[%emt 0:00:10]} 65. g4 {[%emt 0:05:22]} Bc2 {[%emt 0:00:14]} 66. h4 {[%emt 0:00:33]} Ke6 {[%emt 0:00:08]} 67. h5 {[%emt 0:01:08]} Kf7 {[%emt 0:01:36]} 68. Nd5 {[%emt 0:00:08]} Kg7 {[%emt 0:00:46]} 69. Ne3 {[%emt 0:00:37]} Bd3 {[%emt 0:00:25]} 70. Nf5+ {[%emt 0:00:13]} Kh7 {[%emt 0:00:58]} 71. Kf4 {[%emt 0:00:32]} Be2 {[%emt 0:00:21]} 72. Ng3 {[%emt 0:00:11]} Bd1 {[%emt 0:01:03]} 73. g5 {[%emt 0:00:28]} Kg7 {[%emt 0:02:24]} 74. Kf5 {[%emt 0:01:50]} Bc2+ {[%emt 0:00:12]} 75. Ke6 {[%emt 0:00:21]} Bb3+ {[%emt 0:00:49]} 76. Ke5 {[%emt 0:01:02]} Bd1 {[%emt 0:01:26]} 77. Nf5+ {[%emt 0:00:23]} Kh8 {[%emt 0:00:35]} 78. h6 {[%emt 0:02:04]} Kh7 {[%emt 0:00:25]} 79. Kf6 {[%emt 0:00:17]} Bh5 {[%emt 0:00:07]} 80. Nd6 {[%emt 0:01:51]} Bg6 {[%emt 0:00:10]} 81. Nf7 {[%emt 0:00:48]} Bh5 {[%emt 0:00:56]} 82. Ne5 {[%emt 0:00:18]} Be8 {[%emt 0:00:26]} 83. Ke7 {[%emt 0:00:08]} Ba4 {[%emt 0:02:28]} 84. g6+ {[%emt 0:01:18]} Kxh6 {[%emt 0:02:09]} 85. Kf8 {[%emt 0:00:07]} Bc2 {[%emt 0:00:35]} 86. g7 {[%emt 0:00:25]} Bh7 {[%emt 0:00:06]} 87. Kf7 {[%emt 0:00:43]} Bc2 {[%emt 0:08:03]} 88. Kf8 {[%emt 0:00:20]} Bh7 {[%emt 0:00:16]} 89. Kf7 {[%emt 0:00:53]} Bc2 {[%emt 0:00:07]} 90. Nd7 {[%emt 0:00:32]} Bb3+ {[%emt 0:01:01]} 91. Kf8 {[%emt 0:00:29]} Kg6 {[%emt 0:00:16]} 92. Ne5+ {[%emt 0:00:15]} Kf6 {[%emt 0:00:10]} 93. Nc6 {[%emt 0:00:38]} Ba2 {[%emt 0:00:32]} 94. Nb8 {[%emt 0:00:33]} Bb3 {[%emt 0:00:15]} 95. Nd7+ {[%emt 0:00:07]} Kg6 {[%emt 0:00:07]} 96. Nc5 {[%emt 0:00:22]} Ba2 {[%emt 0:00:10]} 97. Nd3 {[%emt 0:00:30]} Bb3 {[%emt 0:00:46]} 98. Nf2 {[%emt 0:00:10]} Ba2 {[%emt 0:00:26]} 99. Ng4 {[%emt 0:00:11]} Bb3 {[%emt 0:00:11]} 100. Nf2 {[%emt 0:01:34]} Ba2 {[%emt 0:00:07]} 1/2-1/2

[Event "Reykjavik Open 2022"]
[Site "Reykjavik"]
[Date "2022.04.10"]
[Round "6.46"]
[White "Povah, Nigel E"]
[Black "Finnbogadottir, Tinna Kristin"]
[Result "1-0"]
[ECO "D02"]
[WhiteElo "2245"]
[BlackElo "1848"]
[Annotator "NA RC"]
[PlyCount "49"]
[EventDate "2022.04.06"]
[EventCountry "ISL"]
[SourceTitle "playchess.com"]
[Source "ChessBase"]
[SourceQuality "1"]
[TimeControl "40/5400+30:1800+30"]

1. d4 {[%emt 0:00:04]} d5 {[%emt 0:00:03]} 2. Bf4 {[%emt 0:00:07]} Nf6 {[%emt 0:00:09]} 3. e3 {[%emt 0:00:10]} c5 {[%emt 0:03:52]} 4. c3 {[%emt 0:00:54]} e6 {[%emt 0:00:46]} 5. Nd2 {[%emt 0:00:15]} Bd6 {[%emt 0:02:11]} 6. Bg3 {[%emt 0:00:34]} O-O {[%emt 0:00:32]} 7. Bd3 {[%emt 0:00:21]} Nc6 {[%emt 0:03:06]} 8. Ngf3 {[%emt 0:00:38]} c4 {[%emt 0:01:45]} 9. Bc2 {[%emt 0:00:29]} b5 {[%emt 0:00:35]} 10. Qe2 {[%emt 0:11:35]} Re8 {[%emt 0:05:00]} 11. Ne5 {[%emt 0:05:02]} Bb7 {[%emt 0:02:43]} 12. f4 {[%emt 0:04:49]} Bf8 {[%emt 0:06:52]} 13. Bh4 {[%emt 0:05:12]} Be7 {[%emt 0:05:44]} 14. Bxf6 {[%emt 0:04:50]} Bxf6 {[%emt 0:00:25]} 15. Bxh7+ {[%emt 0:00:39]} Kf8 {[%emt 0:02:27]} 16. Qh5 {[%emt 0:03:44]} Bxe5 {[%emt 0:01:41]} 17. fxe5 {[%emt 0:00:22]} Qc7 {[%emt 0:03:08]} 18. O-O {[%emt 0:00:31]} Re7 {[%emt 0:02:44]} 19. Nf3 {[%emt 0:12:09]} Nd8 {[%emt 0:04:26]} 20. Ng5 {[%emt 0:00:40]} Ke8 {[%emt 0:01:30]} 21. Nxf7 {[%emt 0:06:03]} Nxf7 {[%emt 0:01:56]} 22. Bg6 {[%emt 0:00:16]} Rd8 {[%emt 0:04:55]} 23. Rxf7 {[%emt 0:03:56]} Rxf7 {[%emt 0:00:07]} 24. Rf1 {[%emt 0:00:11]} Qe7 {[%emt 0:02:25]} 25. Rxf7 {[%emt 0:00:33]} 1-0

[Event "Reykjavik Open 2022"]
[Site "Reykjavik"]
[Date "2022.04.10"]
[Round "6.47"]
[White "Cherniack, Alex"]
[Black "Jonsson, Kristjan Dagur"]
[Result "1-0"]
[ECO "B12"]
[WhiteElo "2213"]
[BlackElo "1797"]
[Annotator "NA RC"]
[PlyCount "37"]
[EventDate "2022.04.06"]
[EventCountry "ISL"]
[SourceTitle "playchess.com"]
[Source "ChessBase"]
[SourceQuality "1"]
[TimeControl "40/5400+30:1800+30"]

1. e4 {[%emt 0:00:22]} c6 {[%emt 0:00:17]} 2. d4 {[%emt 0:00:06]} d5 {[%emt 0:00:09]} 3. e5 {[%emt 0:00:12]} Bf5 {[%emt 0:00:16]} 4. Nc3 {[%emt 0:00:05]} e6 {[%emt 0:00:12]} 5. g4 {[%emt 0:00:14]} Bg6 {[%emt 0:00:20]} 6. Nge2 {[%emt 0:00:17]} c5 {[%emt 0:00:24]} 7. Be3 {[%emt 0:00:17]} Nc6 {[%emt 0:01:16]} 8. dxc5 {[%emt 0:00:14]} Nxe5 {[%emt 0:06:21]} 9. Nf4 {[%emt 0:00:08]} Nf6 {[%emt 0:09:59]} 10. Bb5+ {[%emt 0:17:11]} Nfd7 {[%emt 0:10:14]} 11. Qe2 {[%emt 0:06:43]} Qh4 {[%emt 0:05:59]} 12. O-O-O {[%emt 0:01:42]} Qxg4 {[%emt 0:04:02]} 13. Bxd7+ {[%emt 0:00:09]} Kxd7 {[%emt 0:02:48]} 14. Qb5+ {[%emt 0:00:04]} Kc7 {[%emt 0:01:47]} 15. Nfxd5+ {[%emt 0:00:36]} exd5 {[%emt 0:01:04]} 16. Nxd5+ {[%emt 0:00:05]} Kb8 {[%emt 0:03:55]} 17. Qe8+ {[%emt 0:00:28]} Qc8 {[%emt 0:00:15]} 18. Qxe5+ {[%emt 0:00:05]} Bd6 {[%emt 0:00:18]} 19. Qxd6+ {[%emt 0:00:05]} 1-0